fUSD/lending_fUSD_20251211
["ID","MTS","AMOUNT","RATE_DAILY","PERIOD"]
[398200594,1765435895360,-500.0,0.00038356,60]
[398200595,1765435895369,-628.36,0.00038356,60]
[398200596,1765435895378,-500.0,0.00038356,60]
[398200597,1765435895386,-500.0,0.00038356,11]
[398200598,1765435895395,-500.0,0.00038356,60]
[398200599,1765435895404,-628.36,0.00038356,60]
[398200600,1765435895413,-500.0,0.00038356,60]
[398200601,1765435895422,-500.0,0.00038356,11]
[398200602,1765435895431,-500.0,0.00038356,60]
[398200603,1765435895440,-628.36,0.00038356,60]
[398200604,1765435895448,-500.0,0.00038356,11]
[398200605,1765435895458,-255.56579853,0.00038356,60]
[398200606,1765435895467,-628.36,0.00038356,60]
[398200607,1765435895477,-500.0,0.00038356,60]
[398200608,1765435895487,-500.0,0.00038356,60]
[398200609,1765435895496,-500.0,0.00038356,11]
[398200610,1765435895506,-628.36,0.00038356,60]
[398200611,1765435895515,-500.0,0.00038356,60]
[398200612,1765435895524,-500.0,0.00038356,60]
[398200613,1765435895534,-500.0,0.00038356,60]
[398200614,1765435895543,-500.0,0.00038356,11]
[398200615,1765435895703,-500.0,0.00038356,60]
[398200616,1765435895716,-628.36,0.00038356,60]
[398200617,1765435895727,-504.17151513,0.00038356,60]
[398200618,1765435895737,-500.0,0.00038356,60]
[398200619,1765435895750,-500.0,0.00038356,60]
[398200620,1765435895760,-506.14394545,0.00038356,60]
[398200621,1765435895769,-500.0,0.00038356,60]
[398200622,1765435895779,-500.0,0.00038356,11]
[398200623,1765435895790,-628.36,0.00038356,60]
[398200624,1765435895800,-500.0,0.00038356,60]
[398200625,1765435895810,-500.0,0.00038356,60]
[398200626,1765435895820,-500.0,0.00038356,60]
[398200627,1765435895829,-510.84881315,0.00038356,60]
[398200628,1765435895839,-500.0,0.00038356,11]
[398200629,1765435895848,-628.36,0.00038356,60]
[398200630,1765435895858,-500.0,0.00038356,60]
[398200631,1765435895867,-500.0,0.00038356,60]
[398200632,1765435895877,-500.0,0.00038356,60]
[398200633,1765435895886,-500.0,0.00038356,11]
[398200634,1765435895895,-500.0,0.00038356,60]
[398200635,1765435895905,-500.0,0.00038356,60]
[398200636,1765435895914,-500.0,0.00038356,60]
[398200637,1765435895924,-500.0,0.00038356,11]
[398200638,1765435895934,-500.0,0.00038356,60]
[398200639,1765435895943,-500.0,0.00038356,60]
[398200640,1765435895952,-500.0,0.00038356,11]
[398200641,1765435895962,-500.0,0.00038356,60]
[398200642,1765435895971,-500.0,0.00038356,60]
[398200643,1765435895981,-500.0,0.00038356,11]
[398200644,1765435895990,-500.0,0.00038356,60]
[398200645,1765435896000,-500.0,0.00038356,60]
[398200646,1765435896009,-500.0,0.00038356,60]
[398200647,1765435896019,-500.0,0.00038356,11]
[398200648,1765435896029,-500.0,0.00038356,60]
[398200649,1765435896038,-500.0,0.00038356,60]
[398200650,1765435896047,-500.0,0.00038356,60]
[398200651,1765435896056,-539.99170392,0.00038356,60]
[398200652,1765435896065,-500.0,0.00038356,11]
[398200653,1765435896075,-500.0,0.00038356,60]
[398200654,1765435896084,-500.0,0.00038356,60]
[398200655,1765435896093,-500.0,0.00038356,60]
[398200656,1765435896102,-506.99,0.00038356,60]
[398200657,1765435896113,-500.0,0.00038356,60]
[398200658,1765435896122,-503.77655057,0.00038356,60]
[398200659,1765435896131,-500.0,0.00038356,60]
[398200660,1765435896140,-500.0,0.00038356,60]
[398200661,1765435896149,-500.0,0.00038356,60]
[398200662,1765435896158,-500.0,0.00038356,60]
[398200663,1765435896167,-500.0,0.00038356,60]
[398200664,1765435896176,-500.0,0.00038356,60]
[398200665,1765435896185,-500.0,0.00038356,60]
[398200666,1765435896194,-500.0,0.00038356,60]
[398200667,1765435896203,-500.0,0.00038356,60]
[398200668,1765435896212,-500.0,0.00038356,60]
[398200669,1765435896222,-500.0,0.00038356,60]
[398200670,1765435896231,-4067.58,0.00038356,60]
[398200671,1765435896240,-500.0,0.00038356,60]
[398200672,1765435896250,-527.83,0.00038356,60]
[398200673,1765435896259,-500.0,0.00038356,60]
[398200674,1765435896268,-500.0,0.00038356,60]
[398200675,1765435896278,-4067.58,0.00038356,60]
[398200676,1765435896287,-500.0,0.00038356,60]
[398200677,1765435896296,-527.83,0.00038356,60]
[398200678,1765435896305,-500.0,0.00038356,60]
[398200679,1765435896315,-500.0,0.00038356,60]
[398200680,1765435896324,-500.0,0.00038356,60]
[398200681,1765435896334,-4067.58,0.00038356,60]
[398200682,1765435896343,-500.0,0.00038356,60]
[398200683,1765435896352,-527.83,0.00038356,60]
[398200684,1765435896362,-500.0,0.00038356,60]
[398200685,1765435896370,-500.0,0.00038356,60]
[398200686,1765435896379,-500.0,0.00038356,60]
[398200687,1765435896390,-500.0,0.00038356,60]
[398200688,1765435896399,-4067.58,0.00038356,60]
[398200689,1765435896408,-527.83,0.00038356,60]
[398200690,1765435896417,-500.0,0.00038356,60]
[398200691,1765435896426,-500.0,0.00038356,60]
[398200692,1765435896435,-500.0,0.00038356,60]
[398200693,1765435896444,-4067.58,0.00038356,60]
[398200694,1765435896453,-500.0,0.00038356,60]
[398200695,1765435896463,-558.0277448,0.00038356,60]
[398200696,1765435896472,-527.83,0.00038356,60]
[398200697,1765435896481,-500.0,0.00038356,60]
[398200698,1765435896490,-500.0,0.00038356,60]
[398200699,1765435896499,-4067.58,0.00038356,60]
[398200700,1765435896509,-151.0,0.00038356,31]
[398200701,1765435896518,-527.83,0.00038356,60]
[398200702,1765435896527,-500.0,0.00038356,60]
[398200703,1765435896536,-500.0,0.00038356,60]
[398200704,1765435896545,-500.0,0.00038356,60]
[398200705,1765435896554,-4067.58,0.00038356,60]
[398200706,1765435896563,-527.83,0.00038356,60]
[398200707,1765435896573,-500.0,0.00038356,60]
[398200708,1765435896583,-500.0,0.00038356,60]
[398200709,1765435896593,-4067.58,0.00038356,60]
[398200710,1765435896603,-527.83,0.00038356,60]
[398200711,1765435896613,-500.0,0.00038356,60]
[398200712,1765435896623,-509.59833039,0.00038356,60]
[398200713,1765435896633,-4067.58,0.00038356,60]
[398200714,1765435896642,-500.0,0.00038356,60]
[398200715,1765435896652,-527.83,0.00038356,60]
[398200716,1765435896661,-507.03099784,0.00038356,60]
[398200717,1765435896672,-4067.58,0.00038356,60]
[398200718,1765435896681,-2690.5,0.00038356,60]
[398200719,1765435896692,-161.483556,0.00038356,31]
[398200720,1765435896702,-500.0,0.00038356,60]
[398200721,1765435896715,-527.83,0.00038356,60]
[398200722,1765435896725,-579.12105787,0.00038356,60]
[398200723,1765435898220,-1500.0,0.00038356,60]
[398200724,1765435898232,-1988.45894213,0.00038356,60]
[398200725,1765435898241,-1619.81578233,0.00038356,60]
[398200726,1765435898253,-1070.68421767,0.00038356,60]
[398200727,1765435898262,-500.0,0.00038356,60]
[398200728,1765435898271,-500.0,0.00038356,60]
[398200729,1765435898281,-527.83,0.00038356,60]
[398200730,1765435898290,-4067.58,0.00038356,60]
[398200731,1765435898299,-2690.5,0.00038356,60]
[398200732,1765435898309,-500.0,0.00038356,60]
[398200733,1765435898318,-394.20578233,0.00038356,60]
[398200734,1765435899989,-1.7e-07,0.00038356,60]
[398200735,1765435900251,-133.6242175,0.00038356,60]
[398200736,1765435900260,-500.0,0.00038356,60]
[398200737,1765435900269,-151.0,0.00038356,31]
[398200738,1765435900285,-4067.58,0.00038356,60]
[398200739,1765435900296,-504.0167107,0.00038356,60]
[398200740,1765435900306,-527.83,0.00038356,60]
[398200741,1765435900315,-500.0,0.00038356,60]
[398200742,1765435900324,-216.64620106,0.00038356,60]
[398200743,1765435900336,-4067.58,0.00038356,60]
[398200744,1765435900346,-527.83,0.00038356,60]
[398200745,1765435900355,-4067.58,0.00038356,60]
[398200746,1765435900364,-500.0,0.00038356,60]
[398200747,1765435900374,-527.83,0.00038356,60]
[398200748,1765435900384,-4067.58,0.00038356,60]
[398200749,1765435900394,-500.0,0.00038356,60]
[398200750,1765435900404,-500.0,0.00038356,60]
[398200751,1765435900413,-500.0,0.00038356,60]
[398200752,1765435900428,-500.0,0.00038356,60]
[398200753,1765435900437,-500.0,0.00038356,60]
[398200754,1765435900446,-500.0,0.00038356,60]
[398200755,1765435900455,-500.0,0.00038356,60]
[398200756,1765435900464,-500.0,0.00038356,60]
[398200757,1765435900473,-275.53540786,0.00038356,60]
[398200758,1765435900947,-1996.92010009,0.00016899,2]
[398200759,1765435900962,-11.92851306,0.00016899,2]
[398200760,1765435900971,-590.07148694,0.00016899,2]
[398200761,1765435900982,-265.60627094,0.00016899,2]
[398200762,1765435900998,-1153.17085527,0.00016899,2]
[398200763,1765435901007,-391.33836493,0.00016899,2]
[398200764,1765435901018,-1617.51024822,0.00016899,2]
[398200765,1765435901028,-203.30975178,0.00016899,2]
[398200766,1765435902763,-898.08433789,0.000168,2]
[398200767,1765435902802,-4042.13957973,0.000168,2]
[398200768,1765435904471,-151.0,0.00016799,2]
[398200769,1765435909564,-119.56216476,0.000167,2]
[398200770,1765436009078,-1620.93305406,0.000166,2]
[398200771,1765436009119,-380.43783524,0.000167,2]
[398200772,1765436009220,-5997.2682214,0.000167,2]
[398200773,1765436017839,-3430.570058,0.00016517,2]
[398200774,1765436017920,-3138.869884,0.000167,2]
[398200775,1765436021365,-10000.01,0.000167,2]
[398200776,1765436042603,250.0,0.000202,30]
[398200777,1765436528963,-330.0,0.000165,2]
[398200778,1765436545011,-330.01,0.000165,2]
[398200779,1765436545057,-9339.99,0.000165,2]
[398200780,1765436554279,-300.0,0.00016599,2]
[398200781,1765436554325,-500.0,0.000166,2]
[398200782,1765436554453,-8400.01,0.000166,2]
[398200783,1765436580087,-1200.0,0.00016599,2]
[398200784,1765436580134,-456.09714568,0.000166,2]
[398200785,1765436580215,-6687.81570864,0.000166,2]
[398200786,1765436595883,-240.92022155,0.0001655,2]
[398200787,1765436597277,-363.86066911,0.0001655,2]
[398200788,1765436648134,-226.21266891,0.0001655,2]
[398200789,1765436648158,-284.5493162,0.00016562,2]
[398200790,1765436648180,-84.22898811,0.00016575,2]
[398200791,1765436676232,-110.77101189,0.00016575,2]
[398200792,1765436676277,-825.11511586,0.000166,2]
[398200793,1765436676355,-8128.2377445,0.000166,2]
[398200794,1765436676522,-195.0,0.00016606,2]
[398200795,1765436676571,-300.0,0.00016612,2]
[398200796,1765436676621,-250.0,0.00016612,2]
[398200797,1765436676671,-1200.0,0.00016623,2]
[398200798,1765436676724,-195.0,0.00016625,2]
[398200799,1765436676780,-1973.123,0.00016679,2]
[398200800,1765436676835,-177.51569608,0.00016679,2]
[398200801,1765436676897,-623.27,0.00016685,2]
[398200802,1765436677132,-550.0,0.00016696,2]
[398200803,1765436677181,-500.0,0.00016696,2]
[398200804,1765436677232,-500.0,0.00016696,2]
[398200805,1765436677288,-500.0,0.00016696,2]
[398200806,1765436677334,-500.0,0.00016696,2]
[398200807,1765436677376,-500.0,0.00016696,2]
[398200808,1765436677421,-500.0,0.00016696,2]
[398200809,1765436677461,-229.69690144,0.00016696,2]
[398200810,1765436677503,-500.0,0.00016696,2]
[398200811,1765436677548,-500.0,0.00016696,2]
[398200812,1765436678397,-172.19260784,0.00016696,2]
[398200813,1765436678436,-327.80739216,0.00016696,2]
[398200814,1765436678446,-112.80880496,0.00016696,2]
[398200815,1765436678527,-196.05059569,0.00016696,2]
[398200816,1765436680074,-191.14059935,0.00016696,2]
[398200817,1765436680120,-500.0,0.00016696,2]
[398200818,1765436680161,-630.85823731,0.00016696,2]
[398200819,1765436680208,-500.0,0.00016696,2]
[398200820,1765436680258,-500.0,0.00016696,2]
[398200821,1765436680307,-500.0,0.00016696,2]
[398200822,1765436680358,-563.82051686,0.00016696,2]
[398200823,1765436680402,-500.0,0.00016696,2]
[398200824,1765436680445,-500.0,0.00016696,2]
[398200825,1765436680488,-500.0,0.00016696,2]
[398200826,1765436680673,-500.0,0.00016696,2]
[398200827,1765436680722,-500.0,0.00016696,2]
[398200828,1765436680779,-500.0,0.00016696,2]
[398200829,1765436680829,-500.0,0.00016696,2]
[398200830,1765436680871,-500.0,0.00016696,2]
[398200831,1765436680917,-500.0,0.00016696,2]
[398200832,1765436680965,-500.0,0.00016696,2]
[398200833,1765436681012,-500.0,0.00016696,2]
[398200834,1765436681061,-500.0,0.00016696,2]
[398200835,1765436681105,-500.0,0.00016696,2]
[398200836,1765436682155,-228.37129296,0.00016696,2]
[398200837,1765436682181,-0.01,0.00016696,2]
[398200838,1765436682272,-167.61786871,0.000166,2]
[398200839,1765436683095,-1536.26643129,0.000166,2]
[398200840,1765436683136,-271.61870704,0.00016696,2]
[398200841,1765436683185,-500.0,0.00016696,2]
[398200842,1765436683230,-500.0,0.00016696,2]
[398200843,1765436683277,-500.0,0.00016696,2]
[398200844,1765436683320,-500.0,0.00016696,2]
[398200845,1765436683363,-500.0,0.00016696,2]
[398200846,1765436683404,-500.0,0.00016696,2]
[398200847,1765436683623,-500.0,0.00016696,2]
[398200848,1765436683663,-500.0,0.00016696,2]
[398200849,1765436683705,-500.0,0.00016696,2]
[398200850,1765436683747,-500.0,0.00016696,2]
[398200851,1765436683788,-500.0,0.00016696,2]
[398200852,1765436683832,-500.0,0.00016696,2]
[398200853,1765436683875,-500.0,0.00016696,2]
[398200854,1765436683919,-500.0,0.00016696,2]
[398200855,1765436683961,-166.42251976,0.00016696,2]
[398200856,1765436684006,-500.0,0.00016696,2]
[398200857,1765436684048,-167.16496048,0.00016696,2]
[398200858,1765436684607,-217.81720358,0.00016696,2]
[398200859,1765436684634,-115.01783594,0.00016696,2]
[398200860,1765436684643,-384.98216406,0.00016696,2]
[398200861,1765436810054,275.18,0.00013699,2]
[398200875,1765437032612,-304.06694003,0.00016496,2]
[398200877,1765437032622,-184.34305997,0.00016515,2]
[398200883,1765437032667,-119.72388001,0.00016515,2]
[398200884,1765437032676,-304.06693998,0.00016533,2]
[398200886,1765437032685,-256.0,0.00016588,2]
[398200888,1765437032695,-113.51228124,0.00016588,2]
[398200892,1765437032726,-186.48771876,0.00016588,2]
[398200893,1765437032735,-211.0,0.00016588,2]
[398200894,1765437032745,-1200.0,0.00016588,2]
[398200895,1765437032754,-300.0,0.00016589,2]
[398200896,1765437032763,-2565.47798127,0.00016589,2]
[398200897,1765437032774,-1617.34995375,0.00016589,2]
[398200898,1765437032786,-17007.70322821,0.00016589,2]
[398200899,1765437032795,-500.0,0.00016596,2]
[398200900,1765437032804,-151.0,0.00016597,2]
[398200901,1765437032814,-1200.0,0.00016599,2]
[398200902,1765437032823,-179.16861713,0.00016599,2]
[398200903,1765437032832,-500.0,0.00016599,2]
[398200904,1765437032841,-426.37507912,0.00016599,2]
[398200905,1765437032850,-295.16449406,0.00016599,2]
[398200906,1765437032859,-11739.27277376,0.000166,2]
[398200907,1765437032868,-711396.68862217,0.000166,2]
[398200908,1765437032879,-47141.45851171,0.000166,2]
[398200909,1765437032890,-1461.85286612,0.000166,2]
[398200910,1765437032899,-550.0,0.00016689,2]
[398200911,1765437032908,-151.0,0.0001669,2]
[398200912,1765437032917,-151.0,0.0001669,2]
[398200913,1765437032927,-151.0,0.0001669,2]
[398200914,1765437032937,-151.0,0.0001669,2]
[398200915,1765437032946,-151.0,0.0001669,2]
[398200916,1765437032959,-500.0,0.0001669,2]
[398200917,1765437032971,-151.0,0.0001669,2]
[398200918,1765437032990,-151.0,0.0001669,2]
[398200919,1765437032999,-500.0,0.0001669,2]
[398200920,1765437033009,-151.0,0.0001669,2]
[398200921,1765437033019,-151.0,0.0001669,2]
[398200922,1765437033028,-500.0,0.0001669,2]
[398200923,1765437033038,-151.0,0.0001669,2]
[398200924,1765437033048,-151.0,0.0001669,2]
[398200925,1765437033058,-500.0,0.0001669,2]
[398200926,1765437033067,-151.0,0.0001669,2]
[398200927,1765437033076,-151.0,0.0001669,2]
[398200928,1765437033086,-500.0,0.0001669,2]
[398200929,1765437033096,-151.0,0.0001669,2]
[398200930,1765437033106,-151.0,0.0001669,2]
[398200931,1765437033116,-500.0,0.0001669,2]
[398200932,1765437033126,-151.0,0.0001669,2]
[398200933,1765437033136,-151.0,0.0001669,2]
[398200934,1765437033146,-500.0,0.0001669,2]
[398200935,1765437033157,-151.0,0.0001669,2]
[398200936,1765437033169,-151.0,0.0001669,2]
[398200937,1765437033182,-500.0,0.0001669,2]
[398200938,1765437033191,-151.0,0.0001669,2]
[398200939,1765437033201,-151.0,0.0001669,2]
[398200940,1765437033211,-500.0,0.0001669,2]
[398200941,1765437033220,-500.0,0.0001669,2]
[398200942,1765437033230,-151.0,0.0001669,2]
[398200943,1765437033240,-151.0,0.0001669,2]
[398200944,1765437033250,-151.0,0.0001669,2]
[398200945,1765437033259,-151.0,0.0001669,2]
[398200946,1765437033269,-500.0,0.0001669,2]
[398200947,1765437033278,-151.0,0.0001669,2]
[398200948,1765437033287,-242.25792744,0.0001669,2]
[398200949,1765437033297,-151.0,0.0001669,2]
[398200950,1765437033307,-151.0,0.0001669,2]
[398200951,1765437033316,-151.0,0.0001669,2]
[398200952,1765437033326,-151.0,0.0001669,2]
[398200953,1765437033336,-151.0,0.0001669,2]
[398200954,1765437033345,-537.6845,0.0001669,2]
[398200955,1765437033355,-200.0,0.0001669,2]
[398200956,1765437033365,-200.0,0.0001669,2]
[398200957,1765437033375,-1160.82343171,0.00016697,2]
[398200958,1765437033385,-1160.82343171,0.00016697,2]
[398200959,1765437033394,-1160.82343171,0.00016697,2]
[398200960,1765437033404,-1160.82343171,0.00016697,2]
[398200961,1765437033413,-1160.82343171,0.00016697,2]
[398200962,1765437033422,-1160.82343171,0.00016697,2]
[398200963,1765437033431,-1160.82343171,0.00016697,2]
[398200964,1765437033440,-1160.82343171,0.00016697,2]
[398200965,1765437033449,-1160.82343171,0.00016697,2]
[398200966,1765437033459,-1160.82343171,0.00016697,2]
[398200967,1765437033469,-1160.82343171,0.00016697,2]
[398200968,1765437033478,-1160.82343171,0.00016697,2]
[398200969,1765437033487,-1160.82343171,0.00016697,2]
[398200970,1765437033497,-1160.82343171,0.00016697,2]
[398200971,1765437033507,-1160.82343171,0.00016697,2]
[398200972,1765437033516,-1143.23519788,0.00016697,2]
[398200973,1765437033527,-1143.23519788,0.00016697,2]
[398200974,1765437033536,-1143.23519788,0.00016697,2]
[398200975,1765437033546,-1143.23519788,0.00016697,2]
[398200976,1765437033555,-1143.23519788,0.00016697,2]
[398200977,1765437033565,-1143.23519788,0.00016697,2]
[398200978,1765437033574,-1143.23519788,0.00016697,2]
[398200979,1765437033584,-1143.23519788,0.00016697,2]
[398200980,1765437033594,-1143.23519788,0.00016697,2]
[398200981,1765437033604,-1143.23519788,0.00016697,2]
[398200982,1765437033613,-1143.23519788,0.00016697,2]
[398200983,1765437033623,-495.74968472,0.00016699,2]
[398200984,1765437033631,-500.0,0.00016699,2]
[398200985,1765437033641,-182.88370463,0.00016699,2]
[398200986,1765437033651,-500.0,0.00016699,2]
[398200987,1765437033660,-500.0,0.00016699,2]
[398200988,1765437033669,-500.0,0.00016699,2]
[398200989,1765437033678,-196.58243571,0.00016699,2]
[398200990,1765437033687,-419.03440298,0.00016699,2]
[398200991,1765437033697,-3970.72,0.00016699,2]
[398200992,1765437033706,-3970.72,0.00016699,2]
[398200993,1765437033716,-3970.72,0.00016699,2]
[398200994,1765437033725,-1000.0,0.000167,2]
[398200995,1765437033734,-1500.0,0.0001688,2]
[398200996,1765437033743,-500.0,0.00016899,2]
[398200997,1765437033752,-156.68030338,0.00016899,2]
[398200998,1765437033762,-500.0,0.00016899,2]
[398200999,1765437033771,-500.0,0.00016899,2]
[398201000,1765437033780,-304.5266766,0.00016899,2]
[398201001,1765437033789,-500.0,0.00016899,2]
[398201002,1765437033799,-500.0,0.00016899,2]
[398201003,1765437033808,-500.0,0.00016899,2]
[398201004,1765437033818,-297.8707529,0.00016899,2]
[398201005,1765437033827,-641.1096514,0.00016899,2]
[398201006,1765437033837,-500.0,0.00016899,2]
[398201007,1765437033847,-500.0,0.00016899,2]
[398201008,1765437033857,-508.39661148,0.00016899,2]
[398201009,1765437033866,-17218.02,0.00016993,2]
[398201010,1765437033876,-250.0,0.00017,2]
[398201011,1765437033885,-207.4,0.00017238,2]
[398201012,1765437033894,-397.62291976,0.0001737,2]
[398201013,1765437033903,-519.08168129,0.00017556,2]
[398201014,1765437033912,-935.0,0.00017807,2]
[398201015,1765437033922,-13045.71,0.00017861,2]
[398201016,1765437033931,-151.0,0.0001787,2]
[398201017,1765437033941,-500.0,0.00017873,2]
[398201018,1765437033950,-500.0,0.00017873,2]
[398201019,1765437033960,-500.0,0.00017873,2]
[398201020,1765437033969,-500.0,0.00017873,2]
[398201021,1765437033978,-500.0,0.00017873,2]
[398201022,1765437033988,-502.26175893,0.00017873,2]
[398201023,1765437033997,-537.72548403,0.00017873,2]
[398201024,1765437034006,-500.0,0.00017873,2]
[398201025,1765437034015,-500.0,0.00017873,2]
[398201026,1765437034024,-500.0,0.00017873,2]
[398201027,1765437034033,-500.0,0.00017873,2]
[398201028,1765437034043,-501.66839115,0.00017873,2]
[398201029,1765437034052,-500.0,0.00017873,2]
[398201030,1765437034062,-501.06442764,0.00017873,2]
[398201031,1765437034072,-500.0,0.00017873,2]
[398201032,1765437034081,-201.95861982,0.00017873,2]
[398201033,1765437034090,-500.75582479,0.00017873,2]
[398201034,1765437034100,-500.0,0.00017873,2]
[398201035,1765437034109,-500.0,0.00017873,2]
[398201036,1765437034118,-500.0,0.00017873,2]
[398201037,1765437034128,-500.0,0.00017873,2]
[398201038,1765437034137,-500.0,0.00017873,2]
[398201039,1765437034147,-500.0,0.00017973,2]
[398201040,1765437034156,-466.74902463,0.00017973,2]
[398201041,1765437034166,-500.65733064,0.00017973,2]
[398201042,1765437034178,-501.02109745,0.00017973,2]
[398201043,1765437034188,-420.0,0.00018125,2]
[398201044,1765437034197,-170.0,0.00018126,2]
[398201045,1765437034207,-459.0,0.00018137,2]
[398201046,1765437034216,-1680.0,0.00018216,2]
[398201047,1765437034226,-195.0,0.00018247,2]
[398201048,1765437034236,-300.0,0.00018247,2]
[398201049,1765437034247,-250.0,0.00018247,2]
[398201050,1765437034256,-195.0,0.00018255,2]
[398201051,1765437034266,-300.0,0.00018255,2]
[398201052,1765437034275,-250.0,0.00018255,2]
[398201053,1765437034284,-193.0,0.00018255,2]
[398201054,1765437034293,-250.0,0.00018255,2]
[398201055,1765437034303,-5000.0,0.00018255,3]
[398201056,1765437034312,-195.0,0.00018255,2]
[398201057,1765437034321,-300.0,0.00018255,2]
[398201058,1765437034330,-585.0,0.00018359,2]
[398201059,1765437034339,-196.0,0.00018359,2]
[398201060,1765437034348,-1000.0,0.00018421,2]
[398201061,1765437034358,-1000.0,0.00018421,2]
[398201062,1765437034367,-1025.74534144,0.00018421,2]
[398201063,1765437034377,-1000.0,0.00018421,2]
[398201064,1765437034386,-1000.0,0.00018421,2]
[398201065,1765437034395,-1000.0,0.00018421,2]
[398201066,1765437034405,-502.07699988,0.00018421,2]
[398201067,1765437034415,-1028.03438217,0.00018421,2]
[398201068,1765437034424,-1000.0,0.00018421,2]
[398201069,1765437034434,-1000.0,0.00018421,2]
[398201070,1765437034443,-1000.0,0.00018421,2]
[398201071,1765437034452,-1000.0,0.00018421,2]
[398201072,1765437034462,-1000.0,0.00018421,2]
[398201073,1765437034471,-348.37621948,0.00018502,2]
[398201074,1765437034480,-200.17345735,0.000187,2]
[398201075,1765437034490,-979.86517479,0.00018968,2]
[398201076,1765437034499,-1500.0,0.00018968,2]
[398201077,1765437034508,-500.0,0.00018968,2]
[398201078,1765437034517,-1003.28665112,0.00018968,2]
[398201079,1765437034526,-691.15032062,0.00018968,2]
[398201080,1765437034536,-500.0,0.00018968,2]
[398201081,1765437034545,-1001.81670451,0.00018968,2]
[398201082,1765437034554,-1500.0,0.00018968,2]
[398201083,1765437034564,-501.26270885,0.00018968,2]
[398201084,1765437034573,-1000.0,0.00018968,2]
[398201085,1765437034583,-243.0,0.00018992,2]
[398201086,1765437034592,-2875.30578309,0.00018996,2]
[398201087,1765437034605,-18315.22538007,0.00018996,2]
[398201088,1765437034615,-300.0,0.00019,2]
[398201089,1765437034624,-11739.27277376,0.00019006,2]
[398201090,1765437034633,-500.0,0.00019516,2]
[398201091,1765437034642,-1000.0,0.00019516,2]
[398201092,1765437034652,-587.0,0.00019805,2]
[398201093,1765437034661,-2351.0,0.00020003,2]
[398201094,1765437034671,-275.18,0.00020187,2]
[398201095,1765437034680,-812.94,0.00020564,2]
[398201096,1765437034689,-200.0,0.00020778,2]
[398201097,1765437034699,-488.70550671,0.00020778,2]
[398201098,1765437034708,-207.4,0.00020778,2]
[398201099,1765437034718,-215.0738,0.00020778,2]
[398201100,1765437034727,-223.0315306,0.00020778,2]
[398201101,1765437034736,-231.28369723,0.00020778,2]
[398201102,1765437034746,-239.84119403,0.00020778,2]
[398201103,1765437034755,-248.71531821,0.00020778,2]
[398201104,1765437034766,-257.91778498,0.00020778,2]
[398201105,1765437034779,-267.46074303,0.00020778,2]
[398201106,1765437034789,-277.35679052,0.00020778,2]
[398201107,1765437034799,-577.17896346,0.00020778,2]
[398201108,1765437034808,-151.0,0.00020778,2]
[398201109,1765437034817,-1000.0,0.00020778,2]
[398201110,1765437034826,-1000.0,0.00020778,2]
[398201111,1765437034836,-2623.15705455,0.00020778,2]
[398201112,1765437034845,-1000.0,0.00020778,2]
[398201113,1765437034854,-500.0,0.00020778,2]
[398201114,1765437034863,-800.91950008,0.00020778,2]
[398201115,1765437034872,-500.0,0.00020778,2]
[398201116,1765437034881,-500.0,0.00020778,2]
[398201117,1765437034890,-500.0,0.00020778,2]